bitfinex/quotes_SOLUSD_20260309
["timestamp","ask_amount","ask_price","bid_price","bid_amount"]
[1773064038880,11.69399476,85.514,85.47,2.16405534]
[1773064038881,11.69399476,85.514,85.49,11.28267705]
[1773064039288,40.92897382,85.514,85.48,11.28267705]
[1773064039601,11.69399476,85.514,85.49,11.28267705]
[1773064039800,2.21676705,85.535,85.5,11.28267705]
[1773064039998,2.21676705,85.535,85.51,11.28267705]
[1773064040208,2.21676705,85.535,85.5,11.28267705]
[1773064040703,11.69125727,85.534,85.501,11.69576964]
[1773064040997,2.21676705,85.529,85.49,11.28267705]
[1773064041204,2.21676705,85.519,85.48,11.28267705]
[1773064041777,11.28267705,85.51,85.48,11.28267705]
[1773064042103,2.21676705,85.499,85.462,40.95387423]
[1773064042407,11.28267705,85.5,85.462,40.95387423]
[1773064042408,13.4994441,85.5,85.462,11.70110692]
[1773064042720,46.76274934,85.539,85.464,11.70083309]
[1773064042721,11.69440188,85.511,85.464,11.70083309]
[1773064042895,11.28267705,85.51,85.47,11.28267705]
[1773064043100,11.69114744,85.535,85.491,2.16405534]
[1773064043305,46.74371272,85.574,85.464,193.0637461]
[1773064043306,11.69053494,85.54,85.51,11.28267705]
[1773064043600,52.19930504,85.54,85.501,2.16405534]
[1773064043820,2.21676705,85.574,85.511,2.16405534]
[1773064043981,2.21676705,85.574,85.54,11.28267705]
[1773064043982,11.68609599,85.572,85.54,11.28267705]
[1773064044180,11.28267705,85.58,85.524,2.16405534]
[1773064044401,11.28267705,85.58,85.54,11.28267705]
[1773064044715,2.21676705,85.573,85.531,40.92083571]
[1773064044890,11.68510966,85.579,85.54,11.28267705]
[1773064045261,2.21676705,85.578,85.532,2.16405534]
[1773064045386,11.68510966,85.579,85.54,11.28267705]
[1773064045585,11.28267705,85.57,85.532,2.16405534]
[1773064045786,2.21676705,85.578,85.54,11.28267705]
[1773064046018,11.28267705,85.57,85.54,11.28267705]
[1773064046311,2.21676705,85.559,85.52,11.28267705]
[1773064046511,2.21676705,85.559,85.49,0.14216157]
[1773064046512,11.28267705,85.57,85.53,11.28267705]
[1773064046710,11.68510966,85.579,85.541,11.69030055]
[1773064047208,2.21676705,85.587,85.55,11.28267705]
[1773064047209,11.68429556,85.585,85.55,11.28267705]
[1773064047417,11.28267705,85.58,85.55,11.28267705]
[1773064047713,2.21676705,85.579,85.541,11.69030055]
[1773064048310,2.21676705,85.579,85.55,11.28267705]
[1773064048509,2.21676705,85.579,85.541,11.69030055]
[1773064048813,2.21676705,85.579,85.551,11.68893408]
[1773064049060,2.21676705,85.559,85.461,2.16405534]
[1773064049255,11.28267705,85.54,85.51,11.28267705]
[1773064049418,11.28267705,85.57,85.53,11.28267705]
[1773064049625,2.21676705,85.576,85.53,11.28267705]
[1773064049626,2.21676705,85.576,85.54,11.28267705]
[1773064050247,2.21676705,85.569,85.53,11.28267705]
[1773064050542,11.28267705,85.55,85.51,11.28267705]
[1773064050744,11.28267705,85.55,85.44,11.28267705]
[1773064050745,40.91748696,85.538,85.5,11.28267705]
[1773064050932,2.21676705,85.529,85.49,11.28267705]
[1773064051525,2.21676705,85.529,85.5,11.28267705]
[1773064052341,2.21676705,85.529,85.49,11.28267705]
[1773064052779,2.21676705,85.537,85.5,11.28267705]
[1773064053045,46.73354932,85.592,85.46,46.80536278]
[1773064053046,13.4994441,85.55,85.51,11.28267705]
[1773064053245,11.28267705,85.53,85.494,11.696615]
[1773064053444,11.28267705,85.53,85.49,11.28267705]
[1773064053445,2.12375664,85.529,85.491,11.69713771]
[1773064053747,11.68579241,85.574,85.521,2.06406104]
[1773064054044,11.6837444,85.589,85.56,11.28267705]
[1773064054426,13.80750104,85.589,85.55,11.28267705]
[1773064054626,13.80750104,85.589,85.541,2.06406104]
[1773064054627,13.80750104,85.589,85.56,11.28267705]
[1773064054840,2.12375664,85.586,85.55,11.28267705]
[1773064055036,2.12375664,85.586,85.56,11.28267705]
[1773064055244,11.68251594,85.598,85.56,11.28267705]
[1773064055732,11.68194333,85.603,85.57,11.28267705]
[1773064055936,0.1,85.61,85.59,11.28267705]
[1773064056533,0.1,85.61,85.578,2.06406104]
[1773064056733,0.1,85.61,85.59,11.28267705]
[1773064056933,0.1,85.61,85.591,11.68347139]
[1773064057339,0.1,85.61,85.58,11.28267705]
[1773064057536,11.28267705,85.6,85.56,11.28267705]
[1773064057737,0.1,85.61,85.58,11.28267705]
[1773064057943,0.1,85.61,85.59,11.28267705]
[1773064058137,0.1,85.61,85.585,2.06406104]
[1773064058456,0.1,85.61,85.59,11.28267705]
[1773064058653,11.67828656,85.629,85.6,11.28267705]
[1773064058845,11.28267705,85.63,85.585,2.06406104]
[1773064059046,11.28267705,85.63,85.59,13.34673809]
[1773064059355,11.28267705,85.63,85.6,11.28267705]
[1773064059555,13.40643369,85.63,85.59,13.34673809]
[1773064059751,13.40643369,85.63,85.6,11.28267705]
[1773064059932,2.12375664,85.629,85.59,13.34673809]
[1773064060136,11.67746832,85.635,85.6,11.28267705]
[1773064060332,2.12375664,85.642,85.61,11.28267705]
[1773064060554,11.67558543,85.649,85.61,11.28267705]
[1773064060852,46.68471679,85.682,85.611,11.68074196]
[1773064061057,11.67297007,85.668,85.63,11.28267705]
[1773064061236,11.67232373,85.673,85.64,11.28267705]
[1773064061441,46.6679267,85.712,85.65,11.28267705]
[1773064061442,2.12375664,85.685,85.65,11.28267705]
[1773064061743,11.28267705,85.66,85.63,11.28267705]
[1773064061941,11.28267705,85.66,85.611,11.68074196]
[1773064061942,2.12375664,85.659,85.611,11.68074196]
[1773064062147,2.12375664,85.659,85.62,11.28267705]
[1773064062453,87.52888452,85.686,85.595,2.06406104]
[1773064062454,11.28267705,85.63,85.595,2.06406104]
[1773064062759,11.28267705,85.63,85.543,99.35990233]
[1773064062760,11.28267705,85.62,85.58,11.28267705]
[1773064062956,11.67869572,85.626,85.59,11.28267705]
[1773064063166,46.69434558,85.664,85.59,11.28267705]
[1773064063167,13.40643369,85.64,85.6,11.28267705]
[1773064063466,13.40643369,85.64,85.59,2.06406104]
[1773064063467,2.12375664,85.629,85.59,11.28267705]
[1773064063663,11.28267705,85.64,85.601,2.06406104]
[1773064063968,2.12375664,85.638,85.6,11.28267705]
[1773064064144,11.67634279,85.644,85.61,11.28267705]
[1773064064343,2.12375664,85.629,85.59,11.28267705]
[1773064064647,11.28267705,85.66,85.62,11.28267705]
[1773064064846,31.30663611,85.667,85.63,11.28267705]
[1773064065058,42.97974244,85.667,85.63,11.28267705]
[1773064065245,2.12375664,85.659,85.62,11.28267705]
[1773064065556,2.12375664,85.659,85.581,46.73934635]
[1773064065557,2.12375664,85.649,85.61,22.96355545]
[1773064065745,11.28267705,85.65,85.62,11.28267705]
[1773064066061,2.12375664,85.659,85.62,11.28267705]
[1773064066264,2.12375664,85.659,85.61,40.8830744]
[1773064066265,2.12375664,85.649,85.61,22.96355545]
[1773064066462,2.12375664,85.629,85.578,2.06406104]
[1773064066669,11.28267705,85.63,85.591,2.06406104]
[1773064066960,11.28267705,85.63,85.601,11.68210651]
[1773064067162,11.28267705,85.62,85.58,22.96765017]
[1773064067354,11.6766502,85.641,85.57,11.28267705]
[1773064067355,11.28267705,85.61,85.57,11.28267705]
[1773064067676,11.28267705,85.6,85.561,2.08376436]
[1773064067962,2.27549685,85.613,85.552,29.22180495]
[1773064067963,11.28267705,85.61,85.571,2.08376436]
[1773064068671,11.28267705,85.6,85.571,2.08376436]
[1773064068859,11.28267705,85.59,85.553,2.08376436]
[1773064069171,11.28267705,85.59,85.555,2.08376436]
[1773064069345,11.28267705,85.62,85.554,40.90983471]
[1773064069346,11.28267705,85.61,85.571,2.08376436]
[1773064069668,11.28267705,85.61,85.581,2.08376436]
[1773064069669,11.23200995,85.61,85.581,2.08376436]
[1773064070048,11.23200995,85.62,85.581,2.08376436]
[1773064070367,11.23200995,85.61,85.581,2.08376436]
[1773064070671,11.23200995,85.62,85.581,2.08376436]
[1773064070964,11.23200995,85.63,85.591,2.08376436]
[1773064071156,11.23200995,85.62,85.592,11.68333489]
[1773064071552,11.67828656,85.629,85.592,11.68333489]
[1773064071751,11.23200995,85.62,85.58,11.23200995]
[1773064071945,11.23200995,85.59,85.553,2.08376436]
[1773064072150,11.23200995,85.58,85.554,11.6885242]
[1773064073055,11.23200995,85.59,85.557,2.08376436]
[1773064073876,11.23200995,85.6,85.561,2.08376436]
[1773064074167,11.23200995,85.61,85.57,13.31577431]
[1773064074372,11.23200995,85.61,85.571,2.08376436]
[1773064074867,11.23200995,85.59,85.57,0.5]
[1773064075582,11.23200995,85.62,85.57,0.5]
[1773064075583,11.23200995,85.6,85.571,11.6862021]
[1773064075866,2.27549685,85.649,85.593,2.08376436]
[1773064076056,2.27549685,85.649,85.62,11.23200995]
[1773064076257,2.27549685,85.649,85.61,11.23200995]
[1773064076451,11.23200995,85.65,85.611,2.08376436]
[1773064076651,11.23200995,85.66,85.62,11.23200995]
[1773064076863,2.27549685,85.693,85.63,11.23200995]
[1773064077061,46.65784777,85.731,85.641,11.6766502]
[1773064077062,2.27549685,85.685,85.641,11.6766502]
[1773064077272,11.23200995,85.68,85.641,11.6766502]
[1773064077459,11.23200995,85.68,85.641,40.8682757]
[1773064077657,2.27549685,85.669,85.62,11.23200995]
[1773064077865,2.27549685,85.659,85.62,11.23200995]
[1773064078566,2.27549685,85.659,85.63,11.23200995]
[1773064078765,2.27549685,85.671,85.63,11.23200995]
[1773064079160,2.27549685,85.669,85.618,29.1994674]
[1773064079364,2.27549685,85.669,85.64,11.23200995]
[1773064079668,46.6590223,85.729,85.619,40.8787769]
[1773064079669,2.27549685,85.689,85.66,11.23200995]
[1773064079870,2.27549685,85.719,85.68,11.23200995]
[1773064080051,2.27549685,85.719,85.641,2.08376436]
[1773064080247,2.27549685,85.709,85.66,11.23200995]
[1773064080447,2.27549685,85.689,85.64,11.23200995]
[1773064080677,2.37549685,85.72,85.68,11.23200995]
[1773064080856,2.27549685,85.719,85.68,11.23200995]
[1773064081054,11.66616113,85.718,85.681,11.67119898]
[1773064081255,2.37549685,85.72,85.69,11.23200995]
[1773064081463,0.1,85.72,85.69,11.23200995]
[1773064081652,0.1,85.72,85.685,2.08376436]
[1773064081856,1e-08,85.734,85.701,2.08376436]
[1773064082054,1e-08,85.734,85.71,11.23200995]
[1773064082251,2.27549685,85.783,85.72,11.23200995]
[1773064082449,11.65718548,85.784,85.71,11.23200995]
[1773064082450,2.27549685,85.759,85.71,11.23200995]
[1773064082669,11.65718548,85.784,85.69,11.23200995]
[1773064082670,2.27549685,85.729,85.69,11.23200995]
[1773064082868,2.27549685,85.75,85.71,11.23200995]
[1773064083068,11.23200995,85.77,85.72,11.23200995]
[1773064083373,2.21056214,85.767,85.74,11.23200995]
[1773064083763,2.21056214,85.767,85.73,11.23200995]
[1773064084161,2.21056214,85.767,85.74,11.23200995]
[1773064084373,11.65924783,85.769,85.72,11.23200995]
[1773064084374,2.21056214,85.759,85.72,11.23200995]
[1773064084676,2.21056214,85.739,85.691,11.66983697]
[1773064084970,180.71799865,85.769,85.69,11.23200995]
[1773064084971,2.21056214,85.729,85.69,11.23200995]
[1773064085165,2.21056214,85.727,85.69,11.23200995]
[1773064085367,2.21056214,85.719,85.68,11.23200995]
[1773064085562,2.21056214,85.719,85.69,11.23200995]
[1773064085768,11.23200995,85.72,85.68,11.23200995]
[1773064085973,11.66480029,85.728,85.655,11.28968884]
[1773064085974,2.21056214,85.709,85.655,11.28968884]
[1773064086168,2.21056214,85.709,85.667,2.13668874]
[1773064086476,2.21056214,85.719,85.657,2.13836109]
[1773064086661,87.48600222,85.728,85.657,2.13836109]
[1773064086662,2.21056214,85.709,85.66,11.23200995]
[1773064086857,2.21056214,85.689,85.656,11.67460539]
[1773064087276,11.67024554,85.688,85.656,11.67460539]
[1773064087457,11.23200995,85.7,85.66,11.23200995]
[1773064087781,11.66916171,85.696,85.66,11.23200995]
[1773064087977,11.23200995,85.69,85.655,11.28968884]
[1773064088158,2.21056214,85.695,85.655,11.28968884]
[1773064088480,13.44257209,85.69,85.655,11.28968884]
[1773064088789,2.21056214,85.689,85.655,11.28968884]
[1773064089076,46.66935447,85.71,85.67,11.23200995]
[1773064089077,11.66829103,85.703,85.67,11.23200995]
[1773064089275,11.66738615,85.709,85.671,11.67256131]
[1773064089477,11.66738615,85.709,85.661,2.14165914]
[1773064089478,2.21056214,85.699,85.661,11.67392395]
[1773064089682,2.21056214,85.699,85.67,11.23200995]
[1773064089877,2.21056214,85.699,85.661,40.85873384]
[1773064090059,2.21056214,85.699,85.67,11.23200995]
[1773064090261,2.21056214,85.699,85.661,11.67392395]
[1773064090467,40.83585153,85.709,85.67,11.23200995]
[1773064090667,2.21056214,85.727,85.69,11.23200995]
[1773064090862,11.66547269,85.724,85.69,11.23200995]
[1773064091462,13.44257209,85.7,85.66,11.23200995]
[1773064091661,2.21056214,85.699,85.66,11.23200995]
[1773064092391,2.21056214,85.689,85.65,11.23200995]
[1773064092596,2.21056214,85.689,85.632,29.19437719]
[1773064092597,2.21056214,85.669,85.632,11.67781501]
[1773064092886,2.21056214,85.683,85.64,11.23200995]
[1773064093066,2.21056214,85.683,85.65,11.23200995]
[1773064093265,239.12561676,85.729,85.632,40.87250858]
[1773064093266,2.21056214,85.696,85.66,11.23200995]
[1773064093566,2.21056214,85.707,85.661,11.67392395]
[1773064093973,2.21056214,85.707,85.67,11.23200995]
[1773064094172,2.21056214,85.689,85.638,2.1457395]
[1773064094379,87.50641712,85.708,85.66,13.37774945]
[1773064094380,2.21056214,85.705,85.66,13.37774945]
[1773064094680,11.23200995,85.7,85.661,2.1457395]
[1773064094885,2.21056214,85.699,85.66,11.23200995]
[1773064095078,11.66670555,85.714,85.67,13.37774945]
[1773064095382,2.21056214,85.714,85.681,11.67119898]
[1773064095684,2.21056214,85.724,85.69,11.23200995]
[1773064096577,2.21056214,85.719,85.681,11.67119898]
[1773064097282,11.23200995,85.72,85.681,42.99493593]
[1773064097484,11.66602503,85.719,85.681,42.99493593]
[1773064097685,2.21056214,85.739,85.7,11.23200995]
[1773064098190,2.21056214,85.759,85.7,0.28432314]
[1773064098399,2.21056214,85.759,85.72,11.23200995]
[1773064098686,2.21056214,85.759,85.692,0.28432314]
[1773064098887,2.21056214,85.723,85.681,11.67119898]
[1773064099090,2.21056214,85.719,85.681,11.67119898]
[1773064099390,2.21056214,85.719,85.68,22.90321749]
[1773064099589,11.23200995,85.73,85.69,11.23200995]
[1773064099790,2.21056214,85.738,85.7,11.23200995]
[1773064100088,11.66330374,85.739,85.68,11.23200995]
[1773064100089,2.21056214,85.719,85.68,11.23200995]
[1773064100289,2.21056214,85.689,85.64,11.23200995]
[1773064100589,2.21056214,85.689,85.65,11.23200995]
[1773064100984,3.69383402,85.736,85.67,11.23200995]
[1773064100985,2.21056214,85.703,85.67,11.23200995]
[1773064101177,2.21056214,85.689,85.65,11.23200995]
[1773064101380,31.38174381,85.702,85.66,11.23200995]
[1773064101679,11.66847528,85.701,85.66,11.23200995]
[1773064101881,11.66847528,85.701,85.67,11.23200995]
[1773064102091,11.23200995,85.7,85.66,11.23200995]
[1773064102392,2.21056214,85.699,85.66,11.23200995]
[1773064103275,2.21056214,85.689,85.65,11.23200995]
[1773064103493,11.67024554,85.688,85.651,11.67528692]
[1773064103794,2.21056214,85.687,85.65,11.23200995]
[1773064104007,2.21056214,85.679,85.64,11.23200995]
[1773064104291,40.84585939,85.688,85.611,2.1457395]
[1773064104499,11.23200995,85.65,85.611,2.1457395]
[1773064104684,13.44257209,85.65,85.605,11.68149341]
[1773064104996,2.21056214,85.649,85.61,11.23200995]
[1773064105576,2.21056214,85.647,85.6,11.23200995]
[1773064105771,2.21056214,85.647,85.565,46.74799937]
[1773064105772,2.21056214,85.629,85.59,11.23200995]
[1773064106395,2.21056214,85.619,85.58,11.23200995]
[1773064106695,2.21056214,85.619,85.573,11.68592897]
[1773064106885,2.21056214,85.619,85.58,11.23200995]
[1773064107289,2.21056214,85.619,85.574,2.1457395]
[1773064107493,2.21056214,85.607,85.573,11.68592897]
[1773064107712,2.21056214,85.607,85.57,11.43200995]
[1773064107713,2.21056214,85.599,85.57,0.2]
[1773064107877,11.23200995,85.58,85.57,0.2]
[1773064108076,2.21056214,85.589,85.549,11.68912048]
[1773064108276,40.88402952,85.608,85.56,11.23200995]
[1773064108277,11.23200995,85.6,85.56,11.23200995]
[1773064108607,2.21056214,85.601,85.56,11.23200995]
[1773064108780,40.88402952,85.608,85.56,11.23200995]
[1773064108781,2.21056214,85.599,85.56,11.23200995]
[1773064108977,11.68115129,85.608,85.571,2.1457395]
[1773064109196,2.21056214,85.599,85.56,11.23200995]
[1773064109583,2.21056214,85.599,85.54,0.28432314]
[1773064109584,11.23200995,85.58,85.54,11.23200995]
[1773064109899,11.23200995,85.58,85.531,2.1457395]
[1773064110201,2.21056214,85.579,85.54,11.23200995]
[1773064110399,0.28432314,85.617,85.497,192.98922765]
[1773064110400,11.68314654,85.594,85.56,11.23200995]
[1773064110580,2.21056214,85.589,85.54,11.23200995]
[1773064110775,2.21056214,85.579,85.54,11.23200995]
[1773064111284,11.68314654,85.594,85.55,2.1457395]
[1773064111488,46.69261297,85.667,85.58,11.23200995]
[1773064111717,69.96505786,85.758,85.62,11.23200995]
[1773064111718,31.39673489,85.657,85.62,11.23200995]
[1773064112002,2.21056214,85.657,85.63,11.23200995]
[1773064112186,11.67324259,85.666,85.64,11.23200995]
[1773064112698,11.67225515,85.674,85.65,11.23200995]
[1773064113287,2.13209262,85.673,85.64,11.23200995]
[1773064113489,45.41201325,85.832,85.65,11.23200995]
[1773064113490,2.13209262,85.699,85.65,11.23200995]
[1773064113704,2.13209262,85.689,85.64,11.23200995]
[1773064113881,2.13209262,85.689,85.65,11.23200995]
[1773064114084,2.13209262,85.689,85.64,11.23200995]
[1773064114280,11.23200995,85.65,85.553,2.16063061]
[1773064114501,2.13209262,85.649,85.6,11.23200995]
[1773064114699,11.23200995,85.65,85.6,11.23200995]
[1773064114700,2.13209262,85.641,85.6,11.23200995]
[1773064115000,2.13209262,85.629,85.58,11.23200995]
[1773064115310,11.23200995,85.64,85.6,11.23200995]
[1773064115511,13.36410257,85.64,85.6,13.39317046]
[1773064115717,2.13209262,85.639,85.59,11.23200995]
[1773064116006,2.13209262,85.641,85.57,11.23200995]
[1773064116195,2.13209262,85.609,85.56,13.39317046]
[1773064116387,2.13209262,85.609,85.56,11.23200995]
[1773064116583,2.13209262,85.609,85.562,11.68738064]
[1773064116788,2.13209262,85.609,85.56,11.23200995]
[1773064116985,2.13209262,85.599,85.557,11.68803989]
[1773064117189,2.13209262,85.599,85.56,11.23200995]
[1773064117390,2.13209262,85.641,85.59,11.23200995]
[1773064117589,40.86779851,85.642,85.6,11.23200995]
[1773064117590,2.13209262,85.639,85.6,11.23200995]
[1773064117783,2.13209262,85.639,85.591,11.68347139]
[1773064117998,2.13209262,85.639,85.6,11.23200995]
[1773064118709,13.80810005,85.646,85.61,11.23200995]
[1773064118913,2.13209262,85.645,85.61,11.23200995]
[1773064119404,2.13209262,85.645,85.6,11.23200995]
[1773064119586,46.69029514,85.671,85.6,11.23200995]
[1773064119587,2.13209262,85.658,85.611,11.68074196]
[1773064119786,2.13209262,85.67,85.64,11.23200995]
[1773064119986,2.13209262,85.659,85.611,11.68074196]
[1773064120206,2.13209262,85.659,85.62,11.23200995]
[1773064120612,2.13209262,85.659,85.61,11.23200995]
[1773064121101,2.13209262,85.659,85.62,11.23200995]
[1773064121307,2.13209262,85.659,85.61,11.23200995]
[1773064121508,2.13209262,85.639,85.59,11.23200995]
[1773064121682,2.13209262,85.637,85.591,11.68347139]
[1773064122510,2.13209262,85.629,85.58,11.23200995]
[1773064122717,2.13209262,85.619,85.57,11.23200995]
[1773064123014,2.13209262,85.589,85.539,11.69057389]
[1773064123211,2.13209262,85.579,85.54,11.23200995]
[1773064123390,2.13209262,85.579,85.525,2.1647848]
[1773064123391,2.13209262,85.579,85.534,11.69113691]
[1773064123585,2.13209262,85.577,85.541,11.69030055]
[1773064123790,11.68468687,85.583,85.55,11.23200995]
[1773064124140,40.89609567,85.583,85.55,11.23200995]
[1773064124419,43.02818829,85.583,85.55,11.23200995]
[1773064124623,2.13209262,85.597,85.55,11.23200995]
[1773064124925,2.13209262,85.589,85.541,11.69030055]
[1773064125229,2.13209262,85.589,85.54,11.23200995]
[1773064125524,2.13209262,85.579,85.53,11.23200995]
[1773064125742,2.13209262,85.577,85.531,11.69166734]
[1773064125902,46.72592441,85.606,85.531,11.69166734]
[1773064125903,11.68511953,85.579,85.55,11.23200995]
[1773064126301,11.68511953,85.579,85.5,58.0151879]
[1773064126302,2.23950282,85.569,85.522,11.69289773]
[1773064126539,2.23950282,85.559,85.51,11.23200995]
[1773064126702,2.23950282,85.616,85.55,11.23200995]
[1773064127019,2.23950282,85.616,85.59,11.23200995]
[1773064127329,2.23950282,85.629,85.61,11.23200995]
[1773064127503,2.23950282,85.649,85.61,11.23200995]
[1773064127706,2.23950282,85.646,85.591,40.89214987]
[1773064128027,2.23950282,85.639,85.59,11.23200995]
[1773064128406,2.23950282,85.639,85.6,11.23200995]
[1773064128607,2.23950282,85.639,85.61,11.23200995]
[1773064128834,2.23950282,85.639,85.569,2.1681783]
[1773064129128,2.23950282,85.639,85.61,11.23200995]
[1773064129821,11.23200995,85.66,85.61,11.23200995]
[1773064129822,2.23950282,85.637,85.61,11.22676118]
[1773064130225,11.67652985,85.642,85.61,11.22676118]
[1773064130425,2.23950282,85.641,85.61,11.22676118]
[1773064130628,2.23950282,85.639,85.59,11.22676118]
[1773064130924,2.23950282,85.629,85.59,11.22676118]
[1773064131727,2.23950282,85.627,85.59,11.22676118]
[1773064132103,2.23950282,85.627,85.58,11.22676118]
[1773064132303,2.23950282,85.619,85.538,3.69383402]
[1773064132509,2.23950282,85.619,85.58,11.22676118]
[1773064132913,2.23950282,85.619,85.59,11.22676118]
[1773064133116,2.23950282,85.619,85.58,11.22676118]
[1773064133427,2.23950282,85.619,85.57,11.22676118]
[1773064133630,2.23950282,85.609,85.56,11.22676118]
[1773064133832,2.23950282,85.609,85.508,46.7788385]
[1773064133833,2.23950282,85.579,85.526,2.1704316]
[1773064134027,2.23950282,85.579,85.53,11.22676118]
[1773064134213,2.23950282,85.579,85.54,11.22676118]
[1773064134416,2.23950282,85.579,85.53,11.22676118]
[1773064134809,2.23950282,85.569,85.527,11.69221415]
[1773064135223,2.23950282,85.582,85.54,11.22676118]
[1773064135820,2.23950282,85.579,85.53,11.22676118]
[1773064136021,2.23950282,85.579,85.532,11.69148183]
[1773064136214,2.23950282,85.579,85.54,11.22676118]
[1773064136529,2.23950282,85.579,85.532,11.69148183]
[1773064136728,2.23950282,85.579,85.51,0.28432314]
[1773064136729,2.23950282,85.569,85.528,11.69205975]
[1773064137843,2.23950282,85.567,85.521,29.23245377]
[1773064138339,2.23950282,85.559,85.515,11.69385487]
[1773064138544,2.23950282,85.559,85.51,11.22676118]
[1773064138742,2.23950282,85.559,85.511,11.69440188]
[1773064139041,2.23950282,85.559,85.52,11.22676118]
[1773064139819,2.23950282,85.559,85.5,0.28432314]
[1773064139820,2.23950282,85.606,85.54,11.22676118]
[1773064140027,2.23950282,85.606,85.551,2.17300205]
[1773064140250,2.23950282,85.631,85.59,11.22676118]
[1773064140553,2.23950282,85.629,85.6,11.22676118]
[1773064140842,2.23950282,85.629,85.547,1.16894806]
[1773064141022,2.23950282,85.619,85.58,11.22676118]
[1773064141223,11.67815018,85.63,85.6,11.22676118]
[1773064141424,2.23950282,85.629,85.58,11.22676118]
[1773064141635,2.23950282,85.619,85.58,11.22676118]
[1773064141848,2.23950282,85.619,85.569,2.1738011]
[1773064141849,2.23950282,85.609,85.57,11.22676118]
[1773064142046,2.23950282,85.609,85.57,22.91306968]
[1773064142267,2.23950282,85.609,85.56,11.22676118]
[1773064142541,2.23950282,85.601,85.56,11.22676118]
[1773064142718,2.23950282,85.599,85.56,11.22676118]
[1773064143114,2.16049283,85.609,85.56,13.40096133]
[1773064143319,2.16049283,85.599,85.551,11.6888826]
[1773064143543,2.16049283,85.589,85.547,11.689464]
[1773064143746,2.16049283,85.589,85.55,11.22676118]
[1773064143917,11.22676118,85.57,85.52,11.22676118]
[1773064144119,2.16049283,85.569,85.52,11.22676118]
[1773064144621,11.22676118,85.54,85.501,11.69573362]
[1773064144820,2.16049283,85.549,85.501,11.69573362]
[1773064145020,11.22676118,85.54,85.501,11.69573362]
[1773064145442,2.16049283,85.608,85.531,2.17577196]
[1773064145642,2.16049283,85.608,85.57,11.22676118]
[1773064145828,2.16049283,85.606,85.56,11.22676118]
[1773064146037,40.8845071,85.607,85.54,11.22676118]
[1773064146038,2.16049283,85.589,85.54,11.22676118]
[1773064146347,2.16049283,85.569,85.52,11.22676118]
[1773064146545,2.16049283,85.569,85.53,11.22676118]
[1773064147249,2.16049283,85.569,85.54,11.22676118]
[1773064147434,2.16049283,85.569,85.53,11.22676118]
[1773064148048,2.16049283,85.559,85.517,29.23395348]
[1773064148231,2.16049283,85.559,85.52,11.22676118]
[1773064148550,2.16049283,85.559,85.519,11.69330791]
[1773064148551,2.16049283,85.567,85.53,11.22676118]
[1773064149043,2.16049283,85.559,85.52,11.22676118]
[1773064150150,2.16049283,85.559,85.521,11.69303445]
[1773064150373,2.16049283,85.559,85.521,40.92562059]
[1773064150548,2.16049283,85.572,85.53,13.40442895]
[1773064150730,13.84663019,85.572,85.53,13.40442895]
[1773064150926,11.22676118,85.57,85.53,13.40442895]
[1773064151127,2.16049283,85.569,85.521,40.92562059]
[1773064151346,2.16049283,85.559,85.521,40.92562059]
[1773064151745,2.16049283,85.559,85.515,11.69377207]
[1773064151945,2.16049283,85.539,85.5,11.22676118]
[1773064152132,2.16049283,85.529,85.49,11.22676118]
[1773064152326,40.91748696,85.538,85.485,11.6979587]
[1773064152327,2.16049283,85.519,85.485,11.6979587]
[1773064152528,2.16049283,85.529,85.49,11.22676118]
[1773064152730,11.22676118,85.52,85.485,40.94285546]
[1773064152935,2.16049283,85.519,85.485,11.6979587]
[1773064153135,2.16049283,85.533,85.491,2.17735716]
[1773064153330,13.38725401,85.53,85.491,2.17735716]
[1773064153548,11.69071056,85.538,85.5,11.22676118]
[1773064154032,11.22676118,85.55,85.511,40.9304066]
[1773064154734,13.38725401,85.55,85.511,40.9304066]
[1773064154939,2.16049283,85.549,85.511,40.9304066]
[1773064155439,11.68867462,85.553,85.49,0.28432314]
[1773064155440,2.16049283,85.529,85.49,11.69727453]
[1773064155628,11.22676118,85.52,85.49,11.69727453]
[1773064155832,2.16049283,85.519,85.49,11.69727453]
[1773064156240,2.16049283,85.519,85.49,11.22676118]
[1773064156458,2.16049283,85.545,85.5,11.22676118]
[1773064156854,2.16049283,85.557,85.52,11.22676118]
[1773064157037,2.16049283,85.57,85.53,11.22676118]
[1773064157232,11.68647524,85.569,85.53,11.22676118]
[1773064157536,2.16049283,85.57,85.53,13.4033461]
[1773064157743,7.21004698,85.573,85.55,11.22676118]
[1773064157943,11.68606553,85.572,85.54,11.22676118]
[1773064158143,11.68606553,85.572,85.541,11.69030055]
[1773064158337,13.84284756,85.6,85.56,11.22676118]
[1773064158531,13.84287229,85.599,85.57,11.22676118]
[1773064158752,2.16049283,85.598,85.55,11.22676118]
[1773064158930,2.16049283,85.589,85.55,11.22676118]
[1773064159137,2.16049283,85.589,85.56,11.22676118]
[1773064159435,2.16049283,85.604,85.57,11.22676118]
[1773064160036,2.16049283,85.604,85.56,11.22676118]
[1773064160275,2.16049283,85.589,85.54,11.22676118]
[1773064160569,2.16049283,85.559,85.521,11.69299623]
[1773064160860,2.16049283,85.539,85.5,11.22676118]
[1773064161244,2.16049283,85.539,85.488,2.17610438]